Workbook

Sheet Титул
A1: Утверждаю
A2: Директор ОГБПОУ "ДМК"
A5: И.А.Казаченко | O5: УЧЕБНЫЙ ПЛАН
O7: программы подготовки специалистов среднего звена
A10: Приказ №39-у от 28.02.2025г.
O11: Областное государственное бюджетное профессиональное образовательное учреждение "Димитровградский музыкальный колледж"
O15: наименование образовательного учреждения (организации)
A16: Рассмотрено Педагогическим Советом Протокол № 04 от 26.02.2025 г.
O18: по специальности среднего профессионального образования
O20: 53.02.04 | U20: Вокальное искусство
O21: код | U21: наименование специальности
O22: по программе углубленной подготовки | AE22: на базе | AI22: основного общего образования
O24: квалификация | U24: Артист-вокалист, преподаватель
O26: форма обучения | U26: Очная
O28: нормативный срок освоения ППССЗ | AB28: 3г 10м | AI28: год начала подготовки по УП | AS28: 2025
O30: профиль получаемого профессионального образования | AI30: Искусство и культура 53.00.00 Музыкальное искусство
AI31: при реализации программы среднего (полного) общего образования
O33: Приказ об утверждении ФГОС | Z33: от | AB33: 2021-05-17 | AG33: № | AI33: 253

Sheet сводные данные о бюджете времен
A1: 2 Сводные данные по бюджету времени
A2: Курс | B2: Обучение по дисциплинам и междисциплинарным курсам | T2: Промежуточная аттестация | AC2: Практики | AT2: ГИА | AZ2: Каникулы | BC2: Всего
AC3: Учебная практика | AF3: Производственная практика (по профилю специальности) | AM3: Производственная практика (преддипломная) | AT3: Подго- товка | AW3: Прове- дение
B4: Всего | H4: 1 сем | N4: 2 сем | T4: Всего | W4: 1 сем | Z4: 2 сем | AC4: Всего | AF4: Всего | AI4: 1 сем | AK4: 2 сем | AM4: Всего | AP4: 1 сем | AR4: 2 сем
B5: нед. | E5: час. | H5: нед. | K5: час. | N5: нед. | Q5: час. | T5: нед. | W5: нед. | Z5: нед. | AC5: нед. | AF5: нед. | AI5: нед. | AK5: нед. | AM5: нед. | AP5: нед. | AR5: нед. | AT5: нед. | AW5: нед. | AZ5: нед. | BC5: нед.
A6: I | B6: 36 | E6: 1942/1296 | H6: 16 | K6: 864/576 | N6: 20 | Q6: 1078/720 | T6: 4 | W6: 2 | Z6: 2 | AF6: 1 | AK6: 1 | AZ6: 2 | BC6: 43
A7: II | B7: 36 | E7: 1945/1296 | H7: 16 | K7: 864/576 | N7: 20 | Q7: 1081/720 | T7: 4 | W7: 2 | Z7: 2 | AF7: 2 | AK7: 2 | AZ7: 11 | BC7: 53
A8: III | B8: 36 | E8: 1945/1296 | H8: 16 | K8: 864/576 | N8: 20 | Q8: 1081/720 | T8: 4 | W8: 2 | Z8: 2 | AF8: 2 | AK8: 2 | AZ8: 10 | BC8: 52
A9: IV | B9: 35 | E9: 1890/1260 | H9: 16 | K9: 864/576 | N9: 19 | Q9: 1026/684 | T9: 1 | W9: 1 | AM9: 1 | AP9: 1 | AT9: 1 | AW9: 3 | AZ9: 10 | BC9: 51
A10: Всего | B10: 143 | E10: 7722/5148 | K10: 3456/2304 | Q10: 4266/2844 | T10: 13 | AC10: 19 | AF10: 5 | AM10: 1 | AT10: 1 | AW10: 3 | AZ10: 33 | BC10: 199

Sheet План
A1: Индекс | B1: Наименование циклов, разделов, дисциплин, профессиональных модулей, МДК, практик | C1: Групповые, мелкогрупповые, индивидуальные формы занятий | D1: Формы промежуточной аттестации | K1: Учебная нагрузка обучающихся, ч. | U1: Распределение по курсам и семестрам | EC1: Максимальная учебная нагрузка
U2: Курс 1 | AI2: Курс 2 | AW2: Курс 3 | BK2: Курс 4 | BY2: Курс 5 | CM2: Курс 6 | DA2: Курс 7 | DO2: Курс 8
D3: Экзамены | E3: Зачеты | F3: Диффер. зачеты | G3: Курсовые проекты (работы) | H3: Итоговые письм. КР | I3: Домашние КР | J3: контрольная работа | L3: Максимальная | N3: Самостоятельная | P3: Обязательная | U3: Семестр 1 | AB3: Семестр 2 | AI3: Семестр 3 | AP3: Семестр 4 | AW3: Семестр 5 | BD3: Семестр 6 | BK3: Семестр 7 | BR3: Семестр 8 | BY3: Семестр 9 | CF3: Семестр A | CM3: Семестр B | CT3: Семестр C | DA3: Семестр D | DH3: Семестр E | DO3: Семестр F | DV3: Семестр G
P4: Всего | Q4: в том числе | U4: 16 нед | AB4: 20 нед | AI4: 16 нед | AP4: 20 нед | AW4: 16 нед | BD4: 20 нед | BK4: 16 нед | BR4: 19 нед | BY4: 26 нед | CF4: 26 нед | CM4: 26 нед | CT4: 26 нед | DA4: 26 нед | DH4: 26 нед | DO4: нед | DV4: нед
Q5: Теор. обучение | R5: Лаб. и пр. занятия | T5: Курс. проект. | U5: Максим. | V5: Самост. | W5: Всего | X5: в том числе | AB5: Максим. | AC5: Самост. | AD5: Всего | AE5: в том числе | AI5: Максим. | AJ5: Самост. | AK5: Всего | AL5: в том числе | AP5: Максим. | AQ5: Самост. | AR5: Всего | AS5: в том числе | AW5: Максим. | AX5: Самост. | AY5: Всего | AZ5: в том числе | BD5: Максим. | BE5: Самост. | BF5: Всего | BG5: в том числе | BK5: Максим. | BL5: Самост. | BM5: Всего | BN5: в том числе | BR5: Максим. | BS5: Самост. | BT5: Всего | BU5: в том числе | BY5: Максим. | BZ5: Самост. | CA5: Всего | CB5: в том числе | CF5: Максим. | CG5: Самост. | CH5: Всего | CI5: в том числе | CM5: Максим. | CN5: Самост. | CO5: Всего | CP5: в том числе | CT5: Максим. | CU5: Самост. | CV5: Всего | CW5: в том числе | DA5: Максим. | DB5: Самост. | DC5: Всего | DD5: в том числе | DH5: Максим. | DI5: Самост. | DJ5: Всего | DK5: в том числе | DO5: Максим. | DP5: Самост. | DQ5: Всего | DR5: в том числе | DV5: Максим. | DW5: Самост. | DX5: Всего | DY5: в том числе | EC5: Обяз. часть | ED5: Вар. часть
X6: Теор. обучение | Y6: Лаб. и пр. занятия | Z6: Лаб. занятия | AA6: Курс. проект. | AE6: Теор. обучение | AF6: Лаб. и пр. занятия | AG6: Лаб. занятия | AH6: Курс. проект. | AL6: Теор. обучение | AM6: Лаб. и пр. занятия | AN6: Лаб. занятия | AO6: Курс. проект. | AS6: Теор. обучение | AT6: Лаб. и пр. занятия | AU6: Лаб. занятия | AV6: Курс. проект. | AZ6: Теор. обучение | BA6: Лаб. и пр. занятия | BB6: Лаб. занятия | BC6: Курс. проект. | BG6: Теор. обучение | BH6: Лаб. и пр. занятия | BI6: Лаб. занятия | BJ6: Курс. проект. | BN6: Теор. обучение | BO6: Лаб. и пр. занятия | BP6: Лаб. занятия | BQ6: Курс. проект. | BU6: Теор. обучение | BV6: Лаб. и пр. занятия | BW6: Лаб. занятия | BX6: Курс. проект. | CB6: Теор. обучение | CC6: Лаб. и пр. занятия | CD6: Лаб. занятия | CE6: Курс. проект. | CI6: Теор. обучение | CJ6: Лаб. и пр. занятия | CK6: Лаб. занятия | CL6: Курс. проект. | CP6: Теор. обучение | CQ6: Лаб. и пр. занятия | CR6: Лаб. занятия | CS6: Курс. проект. | CW6: Теор. обучение | CX6: Лаб. и пр. занятия | CY6: Лаб. занятия | CZ6: Курс. проект. | DD6: Теор. обучение | DE6: Лаб. и пр. занятия | DF6: Лаб. занятия | DG6: Курс. проект. | DK6: Теор. обучение | DL6: Лаб. и пр. занятия | DM6: Лаб. занятия | DN6: Курс. проект. | DR6: Теор. обучение | DS6: Лаб. и пр. занятия | DT6: Лаб. занятия | DU6: Курс. проект. | DY6: Теор. обучение | DZ6: Лаб. и пр. занятия | EA6: Лаб. занятия | EB6: Курс. проект.
A7: 1 | B7: 2 | C7: 3 | D7: 4 | E7: 5 | F7: 6 | G7: 6 | H7: 7 | I7: 8 | J7: 7 | K7: 10 | L7: 8 | M7: 12 | N7: 9 | O7: 14 | P7: 10 | Q7: 11 | R7: 12 | S7: 18 | T7: 13 | U7: 20 | V7: 14 | W7: 15 | X7: 16 | Y7: 17 | Z7: 25 | AA7: 18 | AB7: 27 | AC7: 19 | AD7: 20 | AE7: 21 | AF7: 22 | AG7: 32 | AH7: 23 | AI7: 34 | AJ7: 24 | AK7: 25 | AL7: 26 | AM7: 27 | AN7: 39 | AO7: 28 | AP7: 41 | AQ7: 29 | AR7: 30 | AS7: 31 | AT7: 32 | AU7: 46 | AV7: 33 | AW7: 48 | AX7: 34 | AY7: 35 | AZ7: 36 | BA7: 37 | BB7: 53 | BC7: 38 | BD7: 55 | BE7: 39 | BF7: 40 | BG7: 41 | BH7: 42 | BI7: 60 | BJ7: 43 | BK7: 62 | BL7: 44 | BM7: 45 | BN7: 46 | BO7: 47 | BP7: 67 | BQ7: 48 | BR7: 69 | BS7: 49 | BT7: 50 | BU7: 51 | BV7: 52 | BW7: 74 | BX7: 53 | BY7: 76 | BZ7: 77 | CA7: 78 | CB7: 79 | CC7: 80 | CD7: 81 | CE7: 82 | CF7: 83 | CG7: 84 | CH7: 85 | CI7: 86 | CJ7: 87 | CK7: 88 | CL7: 89 | CM7: 90 | CN7: 91 | CO7: 92 | CP7: 93 | CQ7: 94 | CR7: 95 | CS7: 96 | CT7: 97 | CU7: 98 | CV7: 99 | CW7: 100 | CX7: 101 | CY7: 102 | CZ7: 103 | DA7: 104 | DB7: 105 | DC7: 106 | DD7: 107 | DE7: 108 | DF7: 109 | DG7: 110 | DH7: 111 | DI7: 112 | DJ7: 113 | DK7: 114 | DL7: 115 | DM7: 116 | DN7: 117 | DO7: 118 | DP7: 119 | DQ7: 120 | DR7: 121 | DS7: 122 | DT7: 123 | DU7: 124 | DV7: 125 | DW7: 126 | DX7: 127 | DY7: 128 | DZ7: 129 | EA7: 130 | EB7: 131 | EC7: 54 | ED7: 55
B9: час/нед | U9: 31.5 | W9: =W10/16 -> 21 | AB9: 31.5 | AD9: =AD10/20 -> 21 | AI9: 22.5 | AK9: =AK10/16 -> 15 | AP9: 22.5 | AR9: =AR10/20 -> 15 | AW9: 4.5 | AY9: 3 | BD9: 4.5 | BF9: 3 | BY9: NaN | CA9: NaN | CF9: NaN | CH9: NaN | CM9: NaN | CO9: NaN | CT9: NaN | CV9: NaN | DA9: NaN | DC9: NaN | DH9: NaN | DJ9: NaN | DO9: NaN | DQ9: NaN | DV9: NaN | DX9: NaN
A10: ОУЦ.00 | B10: Общеобразовательный учебный цикл | D10: 3 | E10: 4 | F10: 6 | J10: 14 | L10: 2106 | M10: 0 | N10: 702 | O10: 0 | P10: 1404 | Q10: 1276 | R10: 128 | U10: 504 | V10: 168 | W10: 336 | X10: 320 | Y10: 16 | AA10: 0 | AC10: 210 | AD10: 420 | AE10: 380 | AF10: 40 | AH10: 0 | AJ10: 120 | AK10: 240 | AL10: 208 | AM10: 32 | AO10: 0 | AQ10: 150 | AR10: 300 | AS10: 260 | AT10: 40 | AV10: 0 | EC10: 1404
A11: ОУП.00 | B11: Обязательные учебные предметы | D11: 3 | E11: 4 | F11: 6 | J11: 14 | L11: 1134 | M11: 0 | N11: 378 | O11: 0 | P11: 756 | Q11: 628 | R11: 128 | U11: 264 | V11: 88 | W11: 176 | X11: 160 | Y11: 16 | Z11: 0 | AA11: 0 | AB11: 330 | AC11: 110 | AD11: 220 | AE11: 180 | AF11: 40 | AG11: 0 | AH11: 0 | AI11: 240 | AJ11: 80 | AK11: 160 | AL11: 128 | AM11: 32 | AN11: 0 | AO11: 0 | AP11: 300 | AQ11: 100 | AR11: 200 | AS11: 160 | AT11: 40 | AU11: 0 | AV11: 0 | AX11: =SUM(AX15:AX21) -> 0 | AY11: =SUM(AY15:AY21) -> 0 | AZ11: =SUM(AZ15:AZ21) -> 0 | BA11: =SUM(BA15:BA21) -> 0 | BC11: =SUM(BC15:BC21) -> 0 | BE11: =SUM(BE15:BE21) -> 0 | BF11: =SUM(BF15:BF21) -> 0 | BG11: =SUM(BG15:BG21) -> 0 | BH11: =SUM(BH15:BH21) -> 0 | BJ11: =SUM(BJ15:BJ21) -> 0 | BL11: =SUM(BL15:BL21) -> 0 | BM11: =SUM(BM15:BM21) -> 0 | BN11: =SUM(BN15:BN21) -> 0 | BO11: =SUM(BO15:BO21) -> 0 | BQ11: =SUM(BQ15:BQ21) -> 0 | BS11: =SUM(BS15:BS21) -> 0 | BT11: =SUM(BT15:BT21) -> 0 | BU11: =SUM(BU15:BU21) -> 0 | BV11: =SUM(BV15:BV21) -> 0 | BX11: =SUM(BX15:BX21) -> 0 | EC11: =SUM(EC12:EC21) -> 756 | ED11: =SUM(ED15:ED21) -> 0
A12: ОУП.01 | B12: Русский язык | C12: гр | D12: 4 | J12: 123 | L12: =N12+P12 -> 108 | N12: =V12+AC12+AJ12+AQ12+AX12+BE12+BL12+BS12 -> 36 | P12: =W12+AD12+AK12+AR12+AY12+BF12+BM12+BT12 -> 72 | Q12: 72 | R12: 0 | U12: 24 | V12: 8 | W12: 16 | X12: 16 | AB12: 30 | AC12: 10 | AD12: 20 | AE12: 20 | AI12: 24 | AJ12: 8 | AK12: 16 | AL12: 16 | AP12: 30 | AQ12: 10 | AR12: 20 | AS12: 20 | EC12: 72
A13: ОУП.02 | B13: Литература | C13: гр | D13: 4 | J13: 123 | L13: =N13+P13 -> 132 | N13: =V13+AC13+AJ13+AQ13+AX13+BE13+BL13+BS13 -> 44 | P13: 88 | Q13: 88 | R13: 0 | U13: 48 | V13: 16 | W13: 32 | X13: 32 | AB13: 30 | AC13: 10 | AD13: 20 | AE13: 20 | AI13: 48 | AJ13: 8 | AK13: 16 | AL13: 16 | AP13: 60 | AQ13: 10 | AR13: 20 | AS13: 20 | EC13: 88
A14: ОУП.03 | B14: Родная литература | C14: гр | J14: 4 | L14: 54 | N14: 18 | P14: 36 | Q14: 36 | AJ14: 8 | AK14: 16 | AL14: 16 | AQ14: 10 | AR14: 20 | AS14: 20 | EC14: 36
A15: ОУП.04 | B15: Иностранный язык | C15: мг | F15: 34 | J15: 12 | L15: =N15+P15 -> 192 | N15: =V15+AC15+AJ15+AQ15+AX15+BE15+BL15+BS15 -> 64 | P15: =W15+AD15+AK15+AR15+AY15+BF15+BM15+BT15 -> 128 | Q15: =X15+AE15+AL15+AS15+AZ15+BG15+BN15+BU15 -> 0 | R15: =Y15+AF15+AM15+AT15+BA15+BH15+BO15+BV15 -> 128 | U15: 24 | V15: 8 | W15: 16 | Y15: 16 | AB15: 60 | AC15: 20 | AD15: 40 | AF15: 40 | AI15: 48 | AJ15: 16 | AK15: 32 | AM15: 32 | AP15: 60 | AQ15: 20 | AR15: 40 | AT15: 40 | EC15: 128
A16: ОУП.05 | B16: Обществознание | C16: гр | F16: 4 | L16: 60 | N16: 20 | P16: 40 | Q16: 40 | R16: 0 | AP16: 60 | AQ16: 20 | AR16: 40 | AS16: 40 | EC16: 40
A17: ОУП.06 | B17: Математика | C17: мг | D17: 3 | J17: 12 | L17: 102 | N17: 34 | P17: =W17+AD17+AK17+AR17+AY17+BF17+BM17+BT17 -> 68 | Q17: 68 | R17: 0 | U17: 24 | V17: 8 | W17: 16 | X17: 16 | AB17: 30 | AC17: 10 | AD17: 20 | AE17: 20 | AI17: 48 | AJ17: 16 | AK17: 32 | AL17: 32 | EC17: 68
A18: ОУП.07 | B18: Естествознание | C18: гр | F18: 2 | J18: 1 | L18: =N18+P18 -> 108 | N18: =V18+AC18+AJ18+AQ18+AX18+BE18+BL18+BS18 -> 36 | P18: 72 | Q18: 72 | R18: 0 | U18: 48 | V18: 16 | W18: 32 | X18: 32 | AB18: 60 | AC18: 20 | AD18: 40 | AE18: 40 | EC18: 72
A19: ОУП.08 | B19: Астрономия | C19: гр | F19: 4 | J19: 3 | L19: =N19+P19 -> 54 | N19: =V19+AC19+AJ19+AQ19+AX19+BE19+BL19+BS19 -> 18 | P19: 36 | Q19: 36 | R19: 0 | AI19: 24 | AJ19: 8 | AK19: 16 | AL19: 16 | AP19: 30 | AQ19: 10 | AR19: 20 | AS19: 20 | EC19: 36
A20: ОУП.09 | B20: Основы безопасности и защита Родины | C20: гр | F20: 2 | J20: 1 | L20: 108 | N20: 36 | P20: 72 | Q20: 72 | R20: 0 | U20: 48 | V20: 16 | W20: 32 | X20: 32 | AB20: 60 | AC20: 20 | AD20: 40 | AE20: 40 | EC20: 72
A21: ОУП.10 | B21: Физическая культура | C21: гр | E21: 1234 | L21: 216 | N21: 72 | P21: 144 | Q21: 144 | R21: 0 | U21: 48 | V21: 16 | W21: 32 | X21: 32 | AB21: 60 | AC21: 20 | AD21: 40 | AE21: 40 | AI21: 48 | AJ21: 16 | AK21: 32 | AL21: 32 | AP21: 60 | AQ21: 20 | AR21: 40 | AS21: 40 | EC21: 144
A22: ПУП.00 | B22: Профильные учебные предметы | D22: 6 | F22: 1 | G22: =LEN(#REF!)+LEN(#REF!)+LEN(#REF!)+LEN(#REF!)+LEN(#REF!)+LEN(#REF!)+LEN(#REF!) ->  | H22: =LEN(#REF!)+LEN(#REF!)+LEN(#REF!)+LEN(#REF!)+LEN(#REF!)+LEN(#REF!)+LEN(#REF!) ->  | I22: =LEN(#REF!)+LEN(#REF!)+LEN(#REF!)+LEN(#REF!)+LEN(#REF!)+LEN(#REF!)+LEN(#REF!) ->  | J22: 7 | L22: 972 | M22: =SUM(M22:M26) -> 0 | N22: 324 | O22: =SUM(O22:O26) -> 0 | P22: 648 | Q22: 648 | R22: =SUM(R22:R26) -> 0 | U22: 240 | V22: 80 | W22: 160 | X22: 160 | Y22: =SUM(Y22:Y26) -> 0 | Z22: =SUM(Z22:Z26) -> 0 | AA22: =SUM(AA22:AA26) -> 0 | AB22: =SUM(AB22:AB26) -> 360 | AC22: 100 | AD22: 200 | AE22: 200 | AF22: =SUM(AF22:AF26) -> 0 | AG22: =SUM(AG22:AG26) -> 0 | AH22: =SUM(AH22:AH26) -> 0 | AI22: =SUM(AI22:AI26) -> 192 | AJ22: 40 | AK22: 80 | AL22: 80 | AM22: =SUM(AM22:AM26) -> 0 | AN22: =SUM(AN22:AN26) -> 0 | AO22: =SUM(AO22:AO26) -> 0 | AP22: =SUM(AP22:AP26) -> 240 | AQ22: 50 | AR22: 100 | AS22: 100 | AT22: =SUM(AT22:AT26) -> 0 | AU22: 0 | AV22: 0 | AW22: 72 | AX22: 24 | AY22: 48 | AZ22: 48 | BA22: 0 | BB22: 0 | BC22: 0 | BD22: 90 | BE22: 30 | BF22: 60 | BG22: 60 | BH22: 0 | BI22: 0 | BJ22: 0 | BK22: 0 | BL22: 0 | BM22: 0 | BN22: 0 | BO22: 0 | BP22: 0 | BQ22: 0 | BR22: 0 | BS22: 0 | BT22: 0 | BU22: 0 | BV22: 0 | BW22: 0 | BX22: 0 | BY22: 0 | BZ22: =SUM(BZ22:BZ26) -> 0 | CA22: 0 | CB22: 0 | CC22: 0 | CD22: 0 | CE22: 0 | CF22: 0 | CG22: 0 | CH22: 0 | CI22: 0 | CJ22: 0 | CK22: 0 | CL22: 0 | CM22: 0 | CN22: 0 | CO22: 0 | CP22: 0 | CQ22: 0 | CR22: 0 | CS22: 0 | CT22: 0 | CU22: 0 | CV22: 0 | CW22: 0 | CX22: 0 | CY22: 0 | CZ22: 0 | DA22: 0 | DB22: 0 | DC22: 0 | DD22: 0 | DE22: 0 | DF22: =SUM(DF22:DF26) -> 0 | DG22: 0 | DH22: 0 | DI22: 0 | DJ22: 0 | DK22: 0 | DL22: 0 | DM22: 0 | DN22: 0 | DO22: 0 | DP22: 0 | DQ22: 0 | DR22: 0 | DS22: 0 | DT22: 0 | DU22: 0 | DV22: 0 | DW22: 0 | DX22: 0 | DY22: 0 | DZ22: 0 | EA22: 0 | EB22: 0 | EC22: =SUM(EC23:EC26) -> 648 | ED22: =SUM(ED22:ED26) -> 0
A23: ПУП.01 | B23: История мировой культуры | C23: гр | F23: 4 | J23: 123 | L23: =N23+P23 -> 216 | N23: =V23+AC23+AJ23+AQ23+AX23+BE23+BL23+BS23 -> 72 | P23: =W23+AD23+AK23+AR23+AY23+BF23+BM23+BT23 -> 144 | Q23: 144 | R23: 0 | U23: 48 | V23: 16 | W23: 32 | X23: 32 | AB23: 60 | AC23: 20 | AD23: 40 | AE23: 40 | AI23: 48 | AJ23: 16 | AK23: 32 | AL23: 32 | AP23: 60 | AQ23: 20 | AR23: 40 | AS23: 40 | EC23: 144
A24: ПУП.02 | B24: История | C24: гр | D24: 2 | J24: 1 | L24: =N24+P24 -> 216 | N24: =V24+AC24+AJ24+AQ24+AX24+BE24+BL24+BS24 -> 72 | P24: =W24+AD24+AK24+AR24+AY24+BF24+BM24+BT24 -> 144 | Q24: =X24+AE24+AL24+AS24+AZ24+BG24+BN24+BU24 -> 144 | R24: =Y24+AF24+AM24+AT24+BA24+BH24+BO24+BV24 -> 0 | U24: 96 | V24: 32 | W24: 64 | X24: 64 | AB24: 120 | AC24: 40 | AD24: 80 | AE24: 80 | EC24: 144
A25: ПУП.03 | B25: Народная музыкальная культура | C25: гр | D25: 2 | J25: 1 | L25: =N25+P25 -> 54 | N25: =V25+AC25+AJ25+AQ25+AX25+BE25+BL25+BS25 -> 18 | P25: =W25+AD25+AK25+AR25+AY25+BF25+BM25+BT25 -> 36 | Q25: 36 | R25: 0 | U25: 24 | V25: 8 | W25: 16 | X25: 16 | AB25: 30 | AC25: 10 | AD25: 20 | AE25: 20 | EC25: 36
A26: ПУП.04 | B26: Музыкальная литература (зарубежная и отечественная) | C26: мг | D26: 1246 | J26: 35 | L26: 486 | N26: 162 | P26: 324 | Q26: 324 | R26: 0 | U26: 72 | V26: 24 | W26: 48 | X26: 48 | AB26: 90 | AC26: 30 | AD26: 60 | AE26: 60 | AI26: 72 | AJ26: 24 | AK26: 48 | AL26: 48 | AP26: 90 | AQ26: 30 | AR26: 60 | AS26: 60 | AW26: 72 | AX26: 24 | AY26: 48 | AZ26: 48 | BD26: 90 | BE26: 30 | BF26: 60 | BG26: 60 | EC26: 324
B27: час/нед | U27: 22.5 | W27: 15 | AB27: 22.4 | AD27: 15 | AI27: 31.5 | AK27: 21 | AP27: 31.5 | AR27: 21 | AW27: 49.5 | AY27: 33 | BD27: 49.5 | BF27: 33 | BK27: 54 | BM27: 36 | BR27: 54 | BT27: 36 | BY27: NaN | CA27: NaN | CF27: NaN | CH27: NaN | CM27: NaN | CO27: NaN | CT27: NaN | CV27: NaN | DA27: NaN | DC27: NaN | DH27: NaN | DJ27: NaN | DO27: NaN | DQ27: NaN | DV27: NaN | DX27: NaN
A28: ОГСЭ.00 | B28: Общий гуманитарный и социально-экономический цикл | D28: =LEN(D29)+LEN(D30)+LEN(D31)+LEN(D32)+LEN(D33) -> 1 | E28: =LEN(E29)+LEN(E30)+LEN(E31)+LEN(E32)+LEN(E33) -> 3 | F28: 3 | G28: 0 | H28: 0 | I28: 0 | J28: 3 | L28: =SUM(L29:L33) -> 531 | M28: =SUM(M29:M33) -> 0 | N28: 177 | O28: 0 | P28: 354 | Q28: 192 | R28: 162 | V28: =SUM(V29:V33) -> 0 | W28: 0 | X28: 0 | Y28: 0 | Z28: 0 | AA28: 0 | AB28: 0 | AC28: 0 | AD28: 0 | AE28: 0 | AF28: 0 | AG28: 0 | AH28: 0 | AI28: 59 | AJ28: 11 | AK28: 48 | AL28: 48 | AM28: 0 | AN28: 0 | AO28: 0 | AP28: 0 | AQ28: 0 | AR28: 0 | AS28: 0 | AT28: 0 | AU28: 0 | AV28: 0 | AW28: 167 | AX28: 55 | AY28: 112 | AZ28: 48 | BA28: 64 | BB28: 0 | BC28: 0 | BD28: 108 | BE28: 48 | BF28: 60 | BG28: 0 | BH28: 60 | BI28: 0 | BJ28: 0 | BK28: 145 | BL28: 49 | BM28: 96 | BN28: 96 | BO28: 0 | BP28: 0 | BQ28: 0 | BR28: 52 | BS28: 14 | BT28: 38 | BU28: 0 | BV28: 38 | BW28: 0 | BX28: 0 | BY28: 0 | BZ28: 0 | CA28: 0 | CB28: 0 | CC28: 0 | CD28: 0 | CE28: 0 | CF28: 0 | CG28: 0 | CH28: =SUM(CH29:CH33) -> 0 | CI28: 0 | CJ28: 0 | CK28: 0 | CL28: 0 | CM28: 0 | CN28: 0 | CO28: 0 | CP28: 0 | CQ28: 0 | CR28: 0 | CS28: 0 | CT28: 0 | CU28: 0 | CV28: 0 | CW28: 0 | CX28: 0 | CY28: 0 | CZ28: 0 | DA28: 0 | DB28: 0 | DC28: 0 | DD28: 0 | DE28: 0 | DF28: 0 | DG28: 0 | DH28: 0 | DI28: 0 | DJ28: 0 | DK28: 0 | DL28: 0 | DM28: 0 | DN28: 0 | DO28: 0 | DP28: 0 | DQ28: 0 | DR28: 0 | DS28: 0 | DT28: 0 | DU28: 0 | DV28: 0 | DW28: 0 | DX28: 0 | DY28: 0 | DZ28: 0 | EA28: 0 | EB28: 0 | EC28: =SUM(EC29:EC33) -> 354 | ED28: =SUM(ED29:ED33) -> 0
A29: ОГСЭ.01 | B29: Основы философии | C29: гр | F29: 5 | L29: =N29+P29 -> 59 | N29: =V29+AC29+AJ29+AQ29+AX29+BE29+BL29+BS29 -> 11 | P29: =W29+AD29+AK29+AR29+AY29+BF29+BM29+BT29 -> 48 | Q29: 48 | R29: 0 | AW29: 59 | AX29: 11 | AY29: 48 | AZ29: 48 | EC29: 48
A30: ОГСЭ.02 | B30: История | C30: гр | D30: 3 | L30: =N30+P30 -> 59 | N30: =V30+AC30+AJ30+AQ30+AX30+BE30+BL30+BS30 -> 11 | P30: 48 | Q30: 48 | R30: 0 | AI30: 59 | AJ30: 11 | AK30: 48 | AL30: 48 | EC30: 48
A31: ОГСЭ.03 | B31: Психология общения | C31: гр | F31: 7 | L31: =N31+P31 -> 59 | N31: =V31+AC31+AJ31+AQ31+AX31+BE31+BL31+BS31 -> 11 | P31: 48 | Q31: 48 | R31: 0 | BK31: 59 | BL31: 11 | BM31: 48 | BN31: 48 | EC31: 48
A32: ОГСЭ.04 | B32: Иностранный язык | C32: мг | F32: 8 | J32: 567 | L32: =N32+P32 -> 146 | N32: =V32+AC32+AJ32+AQ32+AX32+BE32+BL32+BS32 -> 40 | P32: 106 | Q32: 16 | R32: 90 | AW32: 44 | AX32: 12 | AY32: 32 | BA32: 32 | BD32: 28 | BE32: 8 | BF32: 20 | BH32: 20 | BK32: 22 | BL32: 6 | BM32: 16 | BN32: 16 | BR32: 52 | BS32: 14 | BT32: 38 | BV32: 38 | EC32: 106
A33: ОГСЭ.05 | B33: Физическая культура | C33: гр | E33: 567 | L33: =N33+P33 -> 208 | N33: =V33+AC33+AJ33+AQ33+AX33+BE33+BL33+BS33 -> 104 | P33: 104 | Q33: 32 | R33: 72 | AW33: 64 | AX33: 32 | AY33: 32 | BA33: 32 | BD33: 80 | BE33: 40 | BF33: 40 | BH33: 40 | BK33: 64 | BL33: 32 | BM33: 32 | BN33: 32 | EC33: 104
A34: П | B34: Профессиональный цикл | D34: =D35+D45 ->  | E34: =E35+E45 ->  | F34: =F35+F45 ->  | J34: =J35+J45 ->  | P34: 2706
A35: ОП.00 | B35: Общепрофессиональные дисциплины | D35: =LEN(D36)+LEN(D37)+LEN(D38)+LEN(D39)+LEN(D40)+LEN(D41)+LEN(#REF!) ->  | E35: =LEN(E36)+LEN(E37)+LEN(E38)+LEN(E39)+LEN(E40)+LEN(E41)+LEN(#REF!) ->  | F35: =LEN(F36)+LEN(F37)+LEN(F38)+LEN(F39)+LEN(F40)+LEN(F41)+LEN(#REF!) ->  | G35: =LEN(G36)+LEN(G37)+LEN(G38)+LEN(G39)+LEN(G40)+LEN(G41)+LEN(#REF!) ->  | H35: =LEN(H36)+LEN(H37)+LEN(H38)+LEN(H39)+LEN(H40)+LEN(H41)+LEN(#REF!) ->  | I35: =LEN(I36)+LEN(I37)+LEN(I38)+LEN(I39)+LEN(I40)+LEN(I41)+LEN(#REF!) ->  | J35: =LEN(J36)+LEN(J37)+LEN(J38)+LEN(J39)+LEN(J40)+LEN(J41)+LEN(#REF!) ->  | L35: =SUM(L36:L44) -> 1450 | M35: 0 | N35: 472 | O35: 0 | P35: 978 | Q35: 349 | R35: 629 | U35: 96 | V35: =SUM(V36:V44) -> 40 | W35: 80 | X35: 0 | Y35: 80 | Z35: 0 | AA35: 0 | AB35: 120 | AC35: 50 | AD35: 100 | AE35: 0 | AF35: 100 | AG35: 0 | AH35: 0 | AI35: 96 | AJ35: 40 | AK35: 80 | AL35: 32 | AM35: 48 | AN35: 0 | AO35: 0 | AP35: 120 | AQ35: 50 | AR35: 100 | AS35: 40 | AT35: 60 | AU35: 0 | AV35: 0 | AW35: 120 | AX35: 48 | AY35: 96 | AZ35: 48 | BA35: 48 | BB35: =SUM(BB36:BB44) -> 0 | BC35: 0 | BD35: 150 | BE35: 70 | BF35: 140 | BG35: 60 | BH35: 80 | BI35: 0 | BJ35: 0 | BK35: 216 | BL35: 96 | BM35: 192 | BN35: 112 | BO35: 80 | BP35: 0 | BQ35: 0 | BR35: 256 | BS35: 94 | BT35: 190 | BU35: 57 | BV35: 133 | BW35: 0 | BX35: 0 | BY35: 0 | BZ35: 0 | CA35: 0 | CB35: 0 | CC35: 0 | CD35: 0 | CE35: 0 | CF35: 0 | CG35: 0 | CH35: =SUM(CH36:CH44) -> 0 | CI35: 0 | CJ35: 0 | CK35: 0 | CL35: 0 | CM35: 0 | CN35: 0 | CO35: 0 | CP35: 0 | CQ35: 0 | CR35: 0 | CS35: 0 | CT35: 0 | CU35: 0 | CV35: 0 | CW35: 0 | CX35: 0 | CY35: 0 | CZ35: 0 | DA35: 0 | DB35: 0 | DC35: 0 | DD35: 0 | DE35: 0 | DF35: 0 | DG35: 0 | DH35: 0 | DI35: 0 | DJ35: 0 | DK35: 0 | DL35: 0 | DM35: 0 | DN35: =SUM(DN36:DN44) -> 0 | DO35: 0 | DP35: 0 | DQ35: 0 | DR35: 0 | DS35: 0 | DT35: 0 | DU35: 0 | DV35: 0 | DW35: 0 | DX35: 0 | DY35: 0 | DZ35: 0 | EA35: 0 | EB35: 0 | EC35: =SUM(EC36:EC44) -> 815 | ED35: 163
A36: ОП.01 | B36: Музыкальная литература (зарубежная и отечественная) | C36: мг | D36: 8 | J36: 7 | L36: =N36+P36 -> 157 | N36: =V36+AC36+AJ36+AQ36+AX36+BE36+BL36+BS36 -> 52 | P36: =W36+AD36+AK36+AR36+AY36+BF36+BM36+BT36 -> 105 | Q36: =X36+AE36+AL36+AS36+AZ36+BG36+BN36+BU36 -> 105 | R36: =Y36+AF36+AM36+AT36+BA36+BH36+BO36+BV36 -> 0 | BK36: 72 | BL36: 24 | BM36: 48 | BN36: 48 | BR36: 85 | BS36: 28 | BT36: 57 | BU36: 57 | EC36: 105
A37: ОП.02 | B37: Сольфеджио | C37: мг | D37: 57 | F37: 268 | J37: 134 | L37: =N37+P37 -> 565 | N37: =V37+AC37+AJ37+AQ37+AX37+BE37+BL37+BS37 -> 188 | P37: =W37+AD37+AK37+AR37+AY37+BF37+BM37+BT37 -> 377 | Q37: =X37+AE37+AL37+AS37+AZ37+BG37+BN37+BU37 -> 0 | R37: =Y37+AF37+AM37+AT37+BA37+BH37+BO37+BV37 -> 377 | U37: 48 | V37: 16 | W37: 32 | Y37: 32 | AB37: 60 | AC37: 20 | AD37: 40 | AF37: 40 | AI37: 48 | AJ37: 16 | AK37: 32 | AM37: 32 | AP37: 60 | AQ37: 20 | AR37: 40 | AT37: 40 | AW37: 48 | AX37: 24 | AY37: 48 | BA37: 48 | BD37: 60 | BE37: 40 | BF37: 80 | BH37: 80 | BK37: 48 | BL37: 24 | BM37: 48 | BO37: 48 | BR37: 57 | BS37: 28 | BT37: 57 | BV37: 57 | EC37: 286 | ED37: 91
A38: ОП.03 | B38: Музыкальная грамота | C38: мг | F38: 12 | L38: 108 | N38: 36 | P38: =W38+AD38+AK38+AR38+AY38+BF38+BM38+BT38 -> 72 | Q38: 0 | R38: =Y38+AF38+AM38+AT38+BA38+BH38+BO38+BV38 -> 72 | U38: 48 | V38: 16 | W38: 32 | Y38: 32 | AB38: 60 | AC38: 20 | AD38: 40 | AF38: 40 | EC38: 72
A39: ОП.04 | B39: Элементарная теория музыки | C39: мг | D39: 4 | J39: 3 | L39: 108 | N39: 36 | P39: 72 | Q39: 72 | R39: 0 | AI39: 48 | AJ39: 16 | AK39: 32 | AL39: 32 | AP39: 60 | AQ39: 20 | AR39: 40 | AS39: 40 | AW39: 48 | EC39: 72
A40: ОП.05 | B40: Гармония | C40: мг | D40: 7 | F40: 5 | J40: 6 | L40: 156 | N40: 52 | P40: =W40+AD40+AK40+AR40+AY40+BF40+BM40+BT40 -> 104 | Q40: 104 | R40: 0 | AX40: 16 | AY40: 32 | AZ40: 32 | BD40: 60 | BE40: 20 | BF40: 40 | BG40: 40 | BL40: 16 | BM40: 32 | BN40: 32 | BR40: 57 | EC40: 104
A41: ОП.06 | B41: Анализ музыкальных произведений | C41: мг | F41: 8 | J41: 8 | L41: 57 | N41: 19 | P41: 38 | Q41: 0 | R41: 38 | BK41: 48 | BR41: 57 | BS41: 19 | BT41: 38 | BV41: 38 | EC41: 38
A42: ОП.07 | B42: Музыкальная информатика | C42: мг | F42: 8 | L42: 89 | N42: =SUM(BS42) -> 19 | P42: =SUM(BT42,BM42) -> 70 | R42: =SUM(BO42,BV42) -> 70 | BL42: 16 | BM42: 32 | BO42: 32 | BS42: 19 | BT42: 38 | BV42: 38 | EC42: 70
A43: ОП.08 | B43: Безопасность жизнедеятельности | C43: гр | F43: 7 | J43: 56 | L43: =N43+P43 -> 102 | N43: =V43+AC43+AJ43+AQ43+AX43+BE43+BL43+BS43 -> 34 | P43: =W43+AD43+AK43+AR43+AY43+BF43+BM43+BT43 -> 68 | Q43: =X43+AE43+AL43+AS43+AZ43+BG43+BN43+BU43 -> 68 | R43: =Y43+AF43+AM43+AT43+BA43+BH43+BO43+BV43 -> 0 | AW43: 24 | AX43: 8 | AY43: 16 | AZ43: 16 | BD43: 30 | BE43: 10 | BF43: 20 | BG43: 20 | BK43: 48 | BL43: 16 | BM43: 32 | BN43: 32 | EC43: 68
A44: ОП.09 | B44: Анатомия и гигиена голоса | C44: мг | F44: 3 | J44: 124 | L44: =SUM(N44:P44) -> 108 | N44: =SUM(V44,AC44,AJ44,AQ44) -> 36 | P44: =SUM(W44,AD44,AK44,AR44) -> 72 | R44: =SUM(Y44,AF44,AM44,AT44) -> 72 | V44: 8 | W44: 16 | Y44: 16 | AC44: 10 | AD44: 20 | AF44: 20 | AJ44: 8 | AK44: 16 | AM44: 16 | AQ44: 10 | AR44: 20 | AT44: 20 | ED44: 72
A45: ПМ | B45: Профессиональные модули | D45: 11 | E45: 1 | F45: 8 | J45: 43 | L45: =SUM(L46,L54) -> 2505 | N45: =SUM(N46,N54) -> 828 | P45: =SUM(P46,P54) -> 1677 | Q45: =SUM(Q46,Q54) -> 224 | R45: =SUM(R46,R54) -> 1453
A46: ПМ.01 | B46: Исполнительская и репетиционно-концертная деятельность | D46: 8 | E46: =LEN(E47)+LEN(E49)+LEN(E51)+LEN(E53)+LEN(#REF!)+LEN(#REF!)+LEN(#REF!)+LEN(#REF!) ->  | F46: 7 | G46: =LEN(G47)+LEN(G49)+LEN(G51)+LEN(G53)+LEN(#REF!)+LEN(#REF!)+LEN(#REF!)+LEN(#REF!) ->  | H46: =LEN(H47)+LEN(H49)+LEN(H51)+LEN(H53)+LEN(#REF!)+LEN(#REF!)+LEN(#REF!)+LEN(#REF!) ->  | I46: =LEN(I47)+LEN(I49)+LEN(I51)+LEN(I53)+LEN(#REF!)+LEN(#REF!)+LEN(#REF!)+LEN(#REF!) ->  | J46: 32 | L46: =SUM(L47:L53) -> 2016 | M46: 0 | N46: 665 | O46: 0 | P46: 1351 | Q46: 0 | R46: =SUM(R47:R53) -> 1351 | U46: 123 | V46: =SUM(V47:V53) -> 48 | W46: 96 | X46: 0 | Y46: 96 | Z46: 0 | AA46: 0 | AB46: 123 | AC46: 60 | AD46: 120 | AE46: 0 | AF46: 120 | AG46: 0 | AH46: 0 | AI46: 117 | AJ46: 56 | AK46: 112 | AL46: 0 | AM46: 112 | AN46: 0 | AO46: 0 | AP46: 148 | AQ46: 92 | AR46: 200 | AS46: 0 | AT46: 200 | AU46: 0 | AV46: 0 | AW46: 96 | AX46: 72 | AY46: 144 | AZ46: 0 | BA46: 144 | BB46: =SUM(BB47:BB53) -> 0 | BC46: 0 | BD46: 150 | BE46: 120 | BF46: 240 | BG46: 0 | BH46: 240 | BI46: 0 | BJ46: 0 | BK46: 156 | BL46: 96 | BM46: 192 | BN46: 0 | BO46: 192 | BP46: 0 | BQ46: 0 | BR46: 113 | BS46: 121 | BT46: 247 | BU46: 0 | BV46: 247 | BW46: 0 | BX46: 0 | BY46: 0 | BZ46: 0 | CA46: 0 | CB46: 0 | CC46: 0 | CD46: 0 | CE46: 0 | CF46: 0 | CG46: 0 | CH46: =SUM(CH47:CH53) -> 0 | CI46: 0 | CJ46: 0 | CK46: 0 | CL46: 0 | CM46: 0 | CN46: 0 | CO46: 0 | CP46: 0 | CQ46: 0 | CR46: 0 | CS46: 0 | CT46: 0 | CU46: 0 | CV46: 0 | CW46: 0 | CX46: 0 | CY46: 0 | CZ46: 0 | DA46: 0 | DB46: 0 | DC46: 0 | DD46: 0 | DE46: 0 | DF46: 0 | DG46: 0 | DH46: 0 | DI46: 0 | DJ46: 0 | DK46: 0 | DL46: 0 | DM46: 0 | DN46: =SUM(DN47:DN53) -> 0 | DO46: 0 | DP46: 0 | DQ46: 0 | DR46: 0 | DS46: 0 | DT46: 0 | DU46: 0 | DV46: 0 | DW46: 0 | DX46: 0 | DY46: 0 | DZ46: 0 | EA46: 0 | EB46: 0 | EC46: 1169 | ED46: 182
A47: МДК.01.01 | B47: Сольное камерное и оперное исполнительство | C47: инд | D47: 2346 | F47: 1357 | J47: 8 | L47: =N47+P47 -> 986 | N47: =V47+AC47+AJ47+AQ47+AX47+BE47+BL47+BS47 -> 323 | P47: =W47+AD47+AK47+AR47+AY47+BF47+BM47+BT47 -> 663 | Q47: =X47+AE47+AL47+AS47+AZ47+BG47+BN47+BU47 -> 0 | R47: =Y47+AF47+AM47+AT47+BA47+BH47+BO47+BV47 -> 663 | U47: 75 | V47: 32 | W47: 64 | Y47: 64 | AB47: 93 | AC47: 40 | AD47: 80 | AF47: 80 | AI47: 48 | AJ47: 32 | AK47: 64 | AM47: 64 | AP47: 60 | AQ47: 32 | AR47: 80 | AT47: 80 | AW47: 48 | AX47: 40 | AY47: 80 | BA47: 80 | BD47: 60 | BE47: 60 | BF47: 120 | BH47: 120 | BK47: 48 | BL47: 40 | BM47: 80 | BO47: 80 | BR47: 57 | BS47: 47 | BT47: 95 | BV47: 95 | EC47: 663
B48: Итальянский язык | C48: мг | F48: 6 | J48: 1234578 | L48: =SUM(N48:P48) -> 214 | N48: =SUM(,AC48,V48,AJ48,AQ480,AQ48,AX48,BE48,BL48,BS48) -> 71 | P48: =SUM(AD48,W48,AK48,AR48,AY48,BF48,BM48,BT48) -> 143 | R48: =SUM(Y48,AF48,AM48,AT48,BA48,BH48,BO48,BV48) -> 143 | V48: 8 | W48: 16 | Y48: 16 | AC48: 10 | AD48: 20 | AF48: 20 | AJ48: 8 | AK48: 16 | AM48: 16 | AQ48: 10 | AR48: 20 | AT48: 20 | AX48: 8 | AY48: 16 | BA48: 16 | BE48: 10 | BF48: 20 | BH48: 20 | BL48: 8 | BM48: 16 | BO48: 16 | BS48: 9 | BT48: 19 | BV48: 19 | ED48: 143
A49: МДК.01.02 | B49: Ансамблевое камерное и оперное исполнительство | C49: инд | D49: 57 | J49: 1234678 | L49: =N49+P49 -> 297 | N49: =V49+AC49+AJ49+AQ49+AX49+BE49+BL49+BS49 -> 99 | P49: =W49+AD49+AK49+AR49+AY49+BF49+BM49+BT49 -> 198 | Q49: =X49+AE49+AL49+AS49+AZ49+BG49+BN49+BU49 -> 0 | R49: =Y49+AF49+AM49+AT49+BA49+BH49+BO49+BV49 -> 198 | U49: 24 | AI49: 24 | AJ49: 8 | AK49: 16 | AM49: 16 | AP49: 30 | AQ49: 20 | AR49: 40 | AT49: 40 | AW49: 24 | AX49: 8 | AY49: 16 | BA49: 16 | BD49: 30 | BE49: 20 | BF49: 40 | BH49: 40 | BK49: 24 | BL49: 24 | BM49: 48 | BO49: 48 | BR49: 28 | BS49: 19 | BT49: 38 | BV49: 38 | EC49: 198
B50: Дирижирование | C50: инд | F50: 8 | J50: 67 | L50: 82 | N50: =SUM(BE50,BL50,BS50,) -> 27 | P50: =SUM(BF50,BM50,BT50,) -> 55 | R50: =SUM(BH50,BV50,BO50) -> 55 | BE50: 10 | BF50: 20 | BH50: 20 | BL50: 8 | BM50: 16 | BO50: 16 | BS50: 9 | BT50: 19 | BV50: 19 | EC50: 16 | ED50: 39
A51: МДК.01.03 | B51: Фортепиано, чтение с листа | C51: инд | D51: 5 | J51: 1234768 | L51: 214 | N51: 71 | P51: =W51+AD51+AK51+AR51+AY51+BF51+BM51+BT51 -> 143 | Q51: 0 | R51: 143 | U51: 24 | V51: 8 | W51: 16 | Y51: 16 | AB51: 30 | AC51: 10 | AD51: 20 | AF51: 20 | AI51: 24 | AJ51: 8 | AK51: 16 | AM51: 16 | AP51: 30 | AQ51: 10 | AR51: 20 | AT51: 20 | AW51: 24 | AX51: 8 | AY51: 16 | BA51: 16 | BD51: 30 | BE51: 10 | BF51: 20 | BH51: 20 | BK51: 24 | BL51: 8 | BM51: 16 | BO51: 16 | BR51: 28 | BS51: 9 | BT51: 19 | BV51: 19 | EC51: 143
B52: Дополнительный инструмент | C52: инд | F52: 68 | J52: 57 | L52: =SUM(N52:P52) -> 106 | N52: =SUM(AX52,BE52,BL52,BS52) -> 35 | P52: =SUM(AY52,BF52,BM52,BT52) -> 71 | R52: =SUM(BA52,BH52,BO52,BV52) -> 71 | AX52: 8 | AY52: 16 | BA52: 16 | BD52: 30 | BE52: 10 | BF52: 20 | BH52: 20 | BL52: 8 | BM52: 16 | BO52: 16 | BS52: 9 | BT52: 19 | BV52: 19 | EC52: 71
A53: МДК.01.04 | B53: Сценическая подготовка | C53: гр | F53: 4 | J53: 8 | L53: =N53+P53 -> 117 | N53: =V53+AC53+AJ53+AQ53+AX53+BE53+BL53+BS53 -> 39 | P53: =W53+AD53+AK53+AR53+AY53+BF53+BM53+BT53 -> 78 | Q53: 0 | R53: 78 | U53: 141 | AI53: 21 | AP53: 28 | AQ53: 20 | AR53: 40 | AT53: 40 | BK53: 60 | BS53: 19 | BT53: 38 | BV53: 38 | EC53: 78
A54: ПМ.02 | B54: Педагогичесская деятельность | D54: 1 | E54: 1 | F54: =LEN(F55)+LEN(F56)+LEN(F57)+LEN(F60)+LEN(#REF!)+LEN(#REF!)+LEN(#REF!)+LEN(#REF!)+LEN(#REF!)+LEN(#REF!) ->  | G54: =LEN(G55)+LEN(G56)+LEN(G57)+LEN(G60)+LEN(#REF!)+LEN(#REF!)+LEN(#REF!)+LEN(#REF!)+LEN(#REF!)+LEN(#REF!) ->  | H54: =LEN(H55)+LEN(H56)+LEN(H57)+LEN(H60)+LEN(#REF!)+LEN(#REF!)+LEN(#REF!)+LEN(#REF!)+LEN(#REF!)+LEN(#REF!) ->  | I54: =LEN(I55)+LEN(I56)+LEN(I57)+LEN(I60)+LEN(#REF!)+LEN(#REF!)+LEN(#REF!)+LEN(#REF!)+LEN(#REF!)+LEN(#REF!) ->  | J54: 4 | L54: =SUM(L55:L60) -> 489 | M54: 0 | N54: 163 | O54: 0 | P54: =SUM(P55:P60) -> 326 | Q54: 224 | R54: 102 | V54: =SUM(V55:V60) -> 0 | W54: 0 | X54: 0 | Y54: 0 | Z54: 0 | AA54: 0 | AB54: 0 | AC54: 0 | AD54: 0 | AE54: 0 | AF54: 0 | AG54: 0 | AH54: 0 | AI54: 48 | AJ54: 16 | AK54: 32 | AL54: 32 | AM54: 0 | AN54: 0 | AO54: 0 | AP54: 60 | AQ54: 20 | AR54: 40 | AS54: 40 | AT54: 0 | AU54: 0 | AV54: 0 | AW54: 24 | AX54: 24 | AY54: 48 | AZ54: 16 | BA54: 32 | BB54: =SUM(BB55:BB60) -> 0 | BC54: 0 | BD54: 30 | BE54: 30 | BF54: 60 | BG54: 60 | BH54: 0 | BI54: 0 | BJ54: 0 | BK54: 0 | BL54: 16 | BM54: 32 | BN54: 0 | BO54: 32 | BP54: 0 | BQ54: 0 | BR54: 171 | BS54: 57 | BT54: 114 | BU54: 76 | BV54: 38 | BW54: 0 | BX54: 0 | BY54: 0 | BZ54: 0 | CA54: 0 | CB54: 0 | CC54: 0 | CD54: 0 | CE54: 0 | CF54: 0 | CG54: 0 | CH54: =SUM(CH55:CH60) -> 0 | CI54: 0 | CJ54: 0 | CK54: 0 | CL54: 0 | CM54: 0 | CN54: 0 | CO54: 0 | CP54: 0 | CQ54: 0 | CR54: 0 | CS54: 0 | CT54: 0 | CU54: 0 | CV54: 0 | CW54: 0 | CX54: 0 | CY54: 0 | CZ54: 0 | DA54: 0 | DB54: 0 | DC54: 0 | DD54: 0 | DE54: 0 | DF54: 0 | DG54: 0 | DH54: 0 | DI54: 0 | DJ54: 0 | DK54: 0 | DL54: 0 | DM54: 0 | DN54: =SUM(DN55:DN60) -> 0 | DO54: 0 | DP54: 0 | DQ54: 0 | DR54: 0 | DS54: 0 | DT54: 0 | DU54: 0 | DV54: 0 | DW54: 0 | DX54: 0 | DY54: 0 | DZ54: 0 | EA54: 0 | EB54: 0 | EC54: 146 | ED54: 180
A55: МДК.02.01 | B55: Педагогические основы преподавания творческих дисциплин: основы педагогики | C55: гр | J55: 34 | L55: =N55+P55 -> 108 | N55: =V55+AC55+AJ55+AQ55+AX55+BE55+BL55+BS55 -> 36 | P55: =W55+AD55+AK55+AR55+AY55+BF55+BM55+BT55 -> 72 | Q55: =X55+AE55+AL55+AS55+AZ55+BG55+BN55+BU55 -> 72 | R55: =Y55+AF55+AM55+AT55+BA55+BH55+BO55+BV55 -> 0 | AI55: 48 | AJ55: 16 | AK55: 32 | AL55: 32 | AP55: 60 | AQ55: 20 | AR55: 40 | AS55: 40 | EC55: 72
B56: Педагогические основы преподавания творческих дисциплин: возрастная психология | C56: гр | J56: 56 | L56: 54 | N56: 18 | P56: =W56+AD56+AK56+AR56+AY56+BF56+BM56+BT56 -> 36 | Q56: 36 | R56: 0 | AW56: 24 | AX56: 8 | AY56: 16 | AZ56: 16 | BD56: 30 | BE56: 10 | BF56: 20 | BG56: 20 | EC56: 36
B57: Педагогические основы преподавания творческих дисциплин: основы психологии музыкального восприятия | C57: гр | D57: 8 | L57: =N57+P57 -> 57 | N57: =V57+AC57+AJ57+AQ57+AX57+BE57+BL57+BS57 -> 19 | P57: =W57+AD57+AK57+AR57+AY57+BF57+BM57+BT57 -> 38 | Q57: =X57+AE57+AL57+AS57+AZ57+BG57+BN57+BU57 -> 38 | R57: =Y57+AF57+AM57+AT57+BA57+BH57+BO57+BV57 -> 0 | BR57: 57 | BS57: 19 | BT57: 38 | BU57: 38 | ED57: 38
A58: МДК.02.02 | B58: Учебно-методическое обеспечение учебного процесса: Физическая культура (ритмика) | C58: гр | E58: 8 | L58: =N58+P58 -> 57 | N58: =V58+AC58+AJ58+AQ58+AX58+BE58+BL58+BS58 -> 19 | P58: =W58+AD58+AK58+AR58+AY58+BF58+BM58+BT58 -> 38 | Q58: =X58+AE58+AL58+AS58+AZ58+BG58+BN58+BU58 -> 38 | R58: =Y58+AF58+AM58+AT58+BA58+BH58+BO58+BV58 -> 0 | BR58: 57 | BS58: 19 | BT58: 38 | BU58: 38 | EC58: 38
B59: Учебно-методическое обеспечение учебного процесса: Изучение репертуара ДШИ | C59: инд | J59: 7 | L59: 105 | N59: =SUM(BL59,BS59) -> 35 | P59: =SUM(BM59,BT59) -> 70 | R59: =SUM(BO59,BV59) -> 70 | BL59: 16 | BM59: 32 | BO59: 32 | BS59: 19 | BT59: 38 | BV59: 38 | ED59: 70
B60: Учебно-методическое обеспечение учебного процесса: История вокального искусства | C60: мг | D60: 6 | J60: 5 | L60: 108 | N60: 36 | P60: 72 | Q60: 40 | R60: 32 | AX60: 16 | AY60: 32 | BA60: 32 | BE60: 20 | BF60: 40 | BG60: 40 | BR60: 57 | ED60: 72
A61: УП.00 | B61: Учебная практика | D61: =LEN(D62)+LEN(D67) -> 0 | E61: 0 | F61: 2 | G61: 0 | H61: 0 | I61: 0 | J61: =LEN(J62)+LEN(J67) -> 2 | L61: =SUM(L62:L67) -> 1112 | M61: =SUM(M62:M67) -> 0 | N61: 377 | O61: 0 | P61: 735 | Q61: 0 | R61: =SUM(R62:R67) -> 735 | V61: =SUM(V62:V67) -> 32 | W61: 64 | X61: 0 | Y61: 64 | Z61: 0 | AA61: 0 | AB61: 0 | AC61: 40 | AD61: 80 | AE61: 0 | AF61: 80 | AG61: 0 | AH61: 0 | AI61: 136 | AJ61: 32 | AK61: 64 | AL61: 0 | AM61: 64 | AN61: 0 | AO61: 0 | AP61: 0 | AQ61: 40 | AR61: 80 | AS61: 0 | AT61: 80 | AU61: 0 | AV61: 0 | AW61: 48 | AX61: 64 | AY61: 128 | AZ61: 0 | BA61: 128 | BB61: 0 | BC61: 0 | BD61: 64 | BE61: 80 | BF61: 160 | BG61: 0 | BH61: 160 | BI61: 0 | BJ61: 0 | BK61: 0 | BL61: 32 | BM61: 64 | BN61: 0 | BO61: 64 | BP61: 0 | BQ61: 0 | BR61: 57 | BS61: 47 | BT61: 95 | BU61: 0 | BV61: 95 | BW61: 0 | BX61: 0 | BY61: 0 | BZ61: 0 | CA61: 0 | CB61: 0 | CC61: 0 | CD61: 0 | CE61: 0 | CF61: 0 | CG61: 0 | CH61: =SUM(CH62:CH67) -> 0 | CI61: 0 | CJ61: 0 | CK61: 0 | CL61: 0 | CM61: 0 | CN61: 0 | CO61: 0 | CP61: 0 | CQ61: 0 | CR61: 0 | CS61: 0 | CT61: 0 | CU61: 0 | CV61: 0 | CW61: 0 | CX61: 0 | CY61: 0 | CZ61: 0 | DA61: 0 | DB61: 0 | DC61: 0 | DD61: 0 | DE61: 0 | DF61: 0 | DG61: 0 | DH61: 0 | DI61: 0 | DJ61: 0 | DK61: 0 | DL61: 0 | DM61: 0 | DN61: 0 | DO61: 0 | DP61: 0 | DQ61: 0 | DR61: 0 | DS61: 0 | DT61: 0 | DU61: 0 | DV61: 0 | DW61: 0 | DX61: 0 | DY61: 0 | DZ61: 0 | EA61: 0 | EB61: 0 | EC61: =SUM(EC62:EC67) -> 684 | ED61: =SUM(ED62:ED67) -> 51
A62: УП.01 | B62: Сценическа я речь | C62: мг | F62: 2 | J62: 1 | L62: =N62+P62 -> 108 | N62: =V62+AC62+AJ62+AQ62+AX62+BE62+BL62+BS62 -> 36 | P62: =W62+AD62+AK62+AR62+AY62+BF62+BM62+BT62 -> 72 | Q62: =X62+AE62+AL62+AS62+AZ62+BG62+BN62+BU62 -> 0 | R62: 72 | V62: 16 | W62: 32 | Y62: 32 | AC62: 20 | AD62: 40 | AF62: 40 | AI62: 136 | EC62: 72
A63: УП.02 | B63: Сценическая подготовка | C63: мг | D63: 6 | J63: 5678 | L63: =N63+P63 -> 213 | N63: =V63+AC63+AJ63+AQ63+AX63+BE63+BL63+BS63 -> 71 | P63: =W63+AD63+AK63+AR63+AY63+BF63+BM63+BT63 -> 142 | Q63: =X63+AE63+AL63+AS63+AZ63+BG63+BN63+BU63 -> 0 | R63: =Y63+AF63+AM63+AT63+BA63+BH63+BO63+BV63 -> 142 | AW63: 48 | AX63: 16 | AY63: 32 | BA63: 32 | BD63: 64 | BE63: 20 | BF63: 40 | BH63: 40 | BL63: 16 | BM63: 32 | BO63: 32 | BR63: 57 | BS63: 19 | BT63: 38 | BV63: 38 | EC63: 142
A64: УП.03 | B64: Сценическое движение | C64: мг | F64: 3 | J64: 124 | L64: =N64+P64 -> 216 | N64: =SUM(V64,AC64,AJ64,AQ64) -> 72 | P64: =SUM(W64,AD64,AK64,AR64) -> 144 | R64: =SUM(Y64,AF64,AT64,AM64) -> 144 | V64: 16 | W64: 32 | Y64: 32 | AC64: 20 | AD64: 40 | AF64: 40 | AJ64: 16 | AK64: 32 | AM64: 32 | AQ64: 20 | AR64: 40 | AT64: 40 | EC64: 144
A65: УП.04 | B65: Мастерство актера | C65: мг | D65: 8 | F65: 8 | J65: 567 | L65: =SUM(N65,P65) -> 213 | N65: =SUM(AX65,BE65,BL65,BS65) -> 71 | P65: =SUM(AY65,BF65,BM65,BT65) -> 142 | R65: =SUM(BA65,BH65,BO65,BV65) -> 142 | AX65: 16 | AY65: 32 | BA65: 32 | BE65: 20 | BF65: 40 | BH65: 40 | BL65: 16 | BM65: 32 | BO65: 32 | BS65: 19 | BT65: 38 | BV65: 38 | EC65: 142
A66: УП.05 | B66: Хоровое исполнительство | C66: гр | F66: 6 | J66: 345 | L66: =SUM(N66,P66) -> 264 | N66: =SUM(AJ66,AQ66,AX66,BE66) -> 88 | P66: =SUM(AK66,AR66,AY66,BF66) -> 176 | R66: =SUM(AM66,AT66,BA66,BH66) -> 176 | AJ66: 16 | AK66: 32 | AM66: 32 | AQ66: 20 | AR66: 40 | AT66: 40 | AX66: 32 | AY66: 64 | BA66: 64 | BE66: 20 | BF66: 40 | BH66: 40 | EC66: 144 | ED66: 32
A67: УП.06 | B67: Методика преподаван ия вокальных дисциплин, в том числе учебная практика по педагогической работе | C67: мг | F67: 6 | J67: 8 | L67: =SUM(N67,P67) -> 98 | N67: =SUM(BE67,BT67) -> 39 | P67: =SUM(BF67,BT67) -> 59 | R67: =SUM(BH67,BV67) -> 59 | BE67: 20 | BF67: 40 | BH67: 40 | BS67: 9 | BT67: 19 | BV67: 19 | EC67: 40 | ED67: 19
A68: ПП | B68: Производственная (по профилю специальности) практика | N68: час | P68: =P69+P70 -> 180 | Q68: нед | R68: =R69+R70 -> 5 | W68: =SUM(W69:W72) -> 20 | Y68: =SUM(Y69:Y70) -> 20 | AD68: =SUM(AD69:AD70) -> 25 | AF68: =SUM(AF69:AF70) -> 25 | AK68: =SUM(AK69:AK70) -> 20 | AM68: =SUM(AM69:AM70) -> 20 | AR68: =SUM(AR69:AR70) -> 25 | AT68: =SUM(AT69:AT70) -> 25 | AY68: =SUM(AY69:AY70) -> 20 | BA68: =SUM(BA69:BA70) -> 20 | BF68: =SUM(BF69:BF70) -> 25 | BH68: =SUM(BH69:BH70) -> 25 | BM68: =SUM(BM69:BM70) -> 20 | BO68: =SUM(BO69:BO70) -> 20 | BT68: =SUM(BT69:BT70) -> 25 | BV68: =SUM(BV69:BV70) -> 25 | BY68: час | CB68: нед | CF68: час | CI68: нед | CM68: час | CP68: нед | CT68: час | CW68: нед | DA68: час | DD68: нед | DH68: час | DK68: нед | DO68: час | DR68: нед | DV68: час | DY68: нед
A69: ПП.01 | B69: Исполнительская (по профилю специальности) | N69: час | P69: =W69+AD69+AK69+AR69+AY69+BF69+BM69+BT69 -> 144 | Q69: нед | R69: 4 | W69: 16 | Y69: 16 | AD69: 20 | AF69: 20 | AK69: 16 | AM69: 16 | AR69: 20 | AT69: 20 | AY69: 16 | BA69: 16 | BF69: 20 | BH69: 20 | BM69: 16 | BO69: 16 | BT69: 20 | BV69: 20 | BY69: час | CB69: нед | CF69: час | CI69: нед | CM69: час | CP69: нед | CT69: час | CW69: нед | DA69: час | DD69: нед | DH69: час | DK69: нед | DO69: час | DR69: нед | DV69: час | DY69: нед
A70: ПП.02 | B70: Педагогическая практика | N70: час | P70: =W70+AD70+AK70+AR70+AY70+BF70+BM70+BT70 -> 36 | Q70: нед | R70: 1 | W70: 4 | Y70: 4 | AD70: 5 | AF70: 5 | AK70: 4 | AM70: 4 | AR70: 5 | AT70: 5 | AY70: 4 | BA70: 4 | BF70: 5 | BH70: 5 | BM70: 4 | BO70: 4 | BT70: 5 | BV70: 5 | BY70: час | CB70: нед | CF70: час | CI70: нед | CM70: час | CP70: нед | CT70: час | CW70: нед | DA70: час | DD70: нед | DH70: час | DK70: нед | DO70: час | DR70: нед | DV70: час | DY70: нед
A71: ПДП.00 | B71: Преддипломная практика | N71: час | P71: =W71+AD71+AK71+AR71+AY71+BF71+BM71+BT71 -> 36 | Q71: нед | R71: 1 | BM71: 16 | BO71: 16 | BT71: 20 | BV71: 20 | CB71: нед | CI71: нед | CP71: нед | CW71: нед | DD71: нед | DK71: нед | DR71: нед | DY71: нед
A72: ГИА.00 | B72: Государственная (итоговая) аттестация | Q72: нед | R72: 4 | BU72: нед | BV72: 4 | CB72: нед | CI72: нед | CP72: нед | CW72: нед | DD72: нед | DK72: нед | DR72: нед | DY72: нед
A73: ГИА.01 | B73: Подготовка дипломного проекта (работы) | Q73: нед | R73: 1 | BU73: нед | BV73: 1
A74: ГИА.02 | B74: Защита дипломного проекта (работы) | Q74: нед | R74: 1 | BU74: нед | BV74: 1 | CB74: нед | CI74: нед | CP74: нед | CW74: нед | DD74: нед | DK74: нед | DR74: нед | DY74: нед
A75: ГИА.03 | B75: Государственный экзамен "Ансамблевое камерное и оперное исполнительство" по МДК "Ансамблевое камерное и оперное исполнительство" | Q75: нед | R75: 1 | BU75: нед | BV75: 1 | CB75: нед | CI75: нед | CP75: нед | CW75: нед | DD75: нед | DK75: нед | DR75: нед | DY75: нед
A76: ГИА.04 | B76: Государственный экзамен по ПМ "Педагогическая деятельность" | Q76: нед | R76: 1 | BU76: нед | BV76: 1 | CB76: нед | CI76: нед | CP76: нед | CW76: нед | DD76: нед | DK76: нед | DR76: нед | DY76: нед
B77: ВСЕГО ПО ДИСЦИПЛИНАМ И МДК | D77: 25 | E77: 8 | F77: 34 | J77: 84 | L77: 7722 | M77: =SUM(M10,M28,M35,M46,M54,#REF!,M61) ->  | N77: 2574 | O77: =SUM(O10,O28,O35,O46,O54,#REF!,O61) ->  | P77: 5148 | Q77: =SUM(Q61,Q54,Q46,Q35,Q28,Q22,Q11) -> 2041 | R77: =SUM(R61,R54,R47:R53,R35,R28,R11) -> 3107 | EC77: 4572 | ED77: 576
B78: Экзаменов | U78: 1 | X78: =SUM(IF(IFERROR(MID(D12:D21,SEARCH(1,D12:D21),1),0)="1",1,0),IF(IFERROR(MID(D21:D26,SEARCH(1,D21:D26),1),0)="1",1,0),IF(IFERROR(MID(D29:D33,SEARCH(1,D29:D33),1),0)="1",1,0),IF(IFERROR(MID(D36:D44,SEARCH(1,D36:D44),1),0)="1",1,0),IF(IFERROR(MID(D47:D53,SEARCH(1,D47:D53),1),0)="1",1,0),IF(IFERROR(MID(D55:D60,SEARCH(1,D55:D60),1),0)="1",1,0),IF(IFERROR(MID(#REF!,SEARCH(1,#REF!),1),0)="1",1,0),IF(IFERROR(MID(D62:D67,SEARCH(1,D62:D67),1),0)="1",1,0)) -> 1 | AB78: 4 | AE78: =SUM(IF(IFERROR(MID(D12:D21,SEARCH(2,D12:D21),1),0)="2",1,0),IF(IFERROR(MID(D21:D26,SEARCH(2,D21:D26),1),0)="2",1,0),IF(IFERROR(MID(D29:D33,SEARCH(2,D29:D33),1),0)="2",1,0),IF(IFERROR(MID(D36:D44,SEARCH(2,D36:D44),1),0)="2",1,0),IF(IFERROR(MID(D47:D53,SEARCH(2,D47:D53),1),0)="2",1,0),IF(IFERROR(MID(D55:D60,SEARCH(2,D55:D60),1),0)="2",1,0),IF(IFERROR(MID(#REF!,SEARCH(2,#REF!),1),0)="2",1,0),IF(IFERROR(MID(D62:D67,SEARCH(2,D62:D67),1),0)="2",1,0)) -> 4 | AI78: 1 | AL78: =SUM(IF(IFERROR(MID(D12:D21,SEARCH(3,D12:D21),1),0)="3",1,0),IF(IFERROR(MID(D21:D26,SEARCH(3,D21:D26),1),0)="3",1,0),IF(IFERROR(MID(D29:D33,SEARCH(3,D29:D33),1),0)="3",1,0),IF(IFERROR(MID(D36:D44,SEARCH(3,D36:D44),1),0)="3",1,0),IF(IFERROR(MID(D47:D53,SEARCH(3,D47:D53),1),0)="3",1,0),IF(IFERROR(MID(D55:D60,SEARCH(3,D55:D60),1),0)="3",1,0),IF(IFERROR(MID(#REF!,SEARCH(3,#REF!),1),0)="3",1,0),IF(IFERROR(MID(D62:D67,SEARCH(3,D62:D67),1),0)="3",1,0)) -> 3 | AP78: 5 | AS78: =SUM(IF(IFERROR(MID(D12:D21,SEARCH(4,D12:D21),1),0)="4",1,0),IF(IFERROR(MID(D21:D26,SEARCH(4,D21:D26),1),0)="4",1,0),IF(IFERROR(MID(D29:D33,SEARCH(4,D29:D33),1),0)="4",1,0),IF(IFERROR(MID(D36:D44,SEARCH(4,D36:D44),1),0)="4",1,0),IF(IFERROR(MID(D47:D53,SEARCH(4,D47:D53),1),0)="4",1,0),IF(IFERROR(MID(D55:D60,SEARCH(4,D55:D60),1),0)="4",1,0),IF(IFERROR(MID(#REF!,SEARCH(4,#REF!),1),0)="4",1,0),IF(IFERROR(MID(D62:D67,SEARCH(4,D62:D67),1),0)="4",1,0)) -> 5 | AW78: 1 | AZ78: =SUM(IF(IFERROR(MID(D12:D21,SEARCH(5,D12:D21),1),0)="5",1,0),IF(IFERROR(MID(D21:D26,SEARCH(5,D21:D26),1),0)="5",1,0),IF(IFERROR(MID(D29:D33,SEARCH(5,D29:D33),1),0)="5",1,0),IF(IFERROR(MID(D36:D44,SEARCH(5,D36:D44),1),0)="5",1,0),IF(IFERROR(MID(D47:D53,SEARCH(5,D47:D53),1),0)="5",1,0),IF(IFERROR(MID(D55:D60,SEARCH(5,D55:D60),1),0)="5",1,0),IF(IFERROR(MID(#REF!,SEARCH(5,#REF!),1),0)="5",1,0),IF(IFERROR(MID(D62:D67,SEARCH(5,D62:D67),1),0)="5",1,0)) -> 3 | BD78: 3 | BG78: 4 | BK78: 2 | BN78: =SUM(IF(IFERROR(MID(D12:D21,SEARCH(7,D12:D21),1),0)="7",1,0),IF(IFERROR(MID(D21:D26,SEARCH(7,D21:D26),1),0)="7",1,0),IF(IFERROR(MID(D29:D33,SEARCH(7,D29:D33),1),0)="7",1,0),IF(IFERROR(MID(D36:D44,SEARCH(7,D36:D44),1),0)="7",1,0),IF(IFERROR(MID(D47:D53,SEARCH(7,D47:D53),1),0)="7",1,0),IF(IFERROR(MID(D55:D60,SEARCH(7,D55:D60),1),0)="7",1,0),IF(IFERROR(MID(#REF!,SEARCH(7,#REF!),1),0)="7",1,0),IF(IFERROR(MID(D62:D67,SEARCH(7,D62:D67),1),0)="7",1,0)) -> 3 | BR78: 6 | BU78: 2
B79: Зачётов | U79: 1 | X79: 1 | AB79: 4 | AE79: 1 | AI79: 1 | AL79: 1 | AP79: 5 | AS79: 1 | AW79: 1 | AZ79: =SUM(IF(IFERROR(MID(E12:E21,SEARCH(5,E12:E21),1),0)="5",1,0),IF(IFERROR(MID(E21:E26,SEARCH(5,E21:E26),1),0)="5",1,0),IF(IFERROR(MID(E29:E33,SEARCH(5,E29:E33),1),0)="5",1,0),IF(IFERROR(MID(E36:E44,SEARCH(5,E36:E44),1),0)="5",1,0),IF(IFERROR(MID(E47:E53,SEARCH(5,E47:E53),1),0)="5",1,0),IF(IFERROR(MID(E55:E60,SEARCH(5,E55:E60),1),0)="5",1,0),IF(IFERROR(MID(#REF!,SEARCH(5,#REF!),1),0)="5",1,0),IF(IFERROR(MID(E62:E67,SEARCH(5,E62:E67),1),0)="5",1,0)) -> 1 | BD79: 3 | BG79: =SUM(IF(IFERROR(MID(E12:E21,SEARCH(6,E12:E21),1),0)="6",1,0),IF(IFERROR(MID(E21:E26,SEARCH(6,E21:E26),1),0)="6",1,0),IF(IFERROR(MID(E29:E33,SEARCH(6,E29:E33),1),0)="6",1,0),IF(IFERROR(MID(E36:E44,SEARCH(6,E36:E44),1),0)="6",1,0),IF(IFERROR(MID(E47:E53,SEARCH(6,E47:E53),1),0)="6",1,0),IF(IFERROR(MID(E55:E60,SEARCH(6,E55:E60),1),0)="6",1,0),IF(IFERROR(MID(#REF!,SEARCH(6,#REF!),1),0)="6",1,0),IF(IFERROR(MID(E62:E67,SEARCH(6,E62:E67),1),0)="6",1,0)) -> 1 | BK79: 2 | BN79: =SUM(IF(IFERROR(MID(E12:E21,SEARCH(7,E12:E21),1),0)="7",1,0),IF(IFERROR(MID(E21:E26,SEARCH(7,E21:E26),1),0)="7",1,0),IF(IFERROR(MID(E29:E33,SEARCH(7,E29:E33),1),0)="7",1,0),IF(IFERROR(MID(E36:E44,SEARCH(7,E36:E44),1),0)="7",1,0),IF(IFERROR(MID(E47:E53,SEARCH(7,E47:E53),1),0)="7",1,0),IF(IFERROR(MID(E55:E60,SEARCH(7,E55:E60),1),0)="7",1,0),IF(IFERROR(MID(#REF!,SEARCH(7,#REF!),1),0)="7",1,0),IF(IFERROR(MID(E62:E67,SEARCH(7,E62:E67),1),0)="7",1,0)) -> 1 | BR79: 6 | BU79: =SUM(IF(IFERROR(MID(E12:E21,SEARCH(8,E12:E21),1),0)="8",1,0),IF(IFERROR(MID(E21:E26,SEARCH(8,E21:E26),1),0)="8",1,0),IF(IFERROR(MID(E29:E33,SEARCH(8,E29:E33),1),0)="8",1,0),IF(IFERROR(MID(E36:E44,SEARCH(8,E36:E44),1),0)="8",1,0),IF(IFERROR(MID(E47:E53,SEARCH(8,E47:E53),1),0)="8",1,0),IF(IFERROR(MID(E55:E60,SEARCH(8,E55:E60),1),0)="8",1,0),IF(IFERROR(MID(#REF!,SEARCH(8,#REF!),1),0)="8",1,0),IF(IFERROR(MID(E62:E67,SEARCH(8,E62:E67),1),0)="8",1,0)) -> 1
B80: Дифференицрованных зачётов | U80: 3 | X80: 2 | AB80: 3 | AE80: =SUM(IF(IFERROR(MID(F12:F21,SEARCH(2,F12:F21),1),0)="2",1,0),IF(IFERROR(MID(F21:F26,SEARCH(2,F21:F26),1),0)="2",1,0),IF(IFERROR(MID(F29:H33,SEARCH(2,F29:I33),1),0)="2",1,0),IF(IFERROR(MID(F36:F44,SEARCH(2,F36:F44),1),0)="2",1,0),IF(IFERROR(MID(F47:I53,SEARCH(2,F47:F53),1),0)="2",1,0),IF(IFERROR(MID(F55:F60,SEARCH(2,F55:F60),1),0)="2",1,0),IF(IFERROR(MID(#REF!,SEARCH(2,#REF!),1),0)="2",1,0),IF(IFERROR(MID(F62:F67,SEARCH(2,F62:I67),1),0)="2",1,0)) -> 5 | AI80: 1 | AL80: =SUM(IF(IFERROR(MID(F12:F21,SEARCH(3,F12:F21),1),0)="3",1,0),IF(IFERROR(MID(F21:F26,SEARCH(3,F21:F26),1),0)="3",1,0),IF(IFERROR(MID(F29:H33,SEARCH(3,F29:F33),1),0)="3",1,0),IF(IFERROR(MID(F36:F44,SEARCH(3,F36:F44),1),0)="3",1,0),IF(IFERROR(MID(F47:I53,SEARCH(3,F47:F53),1),0)="3",1,0),IF(IFERROR(MID(F55:F60,SEARCH(3,F55:F60),1),0)="3",1,0),IF(IFERROR(MID(#REF!,SEARCH(3,#REF!),1),0)="3",1,0),IF(IFERROR(MID(F62:F67,SEARCH(3,F62:I67),1),0)="3",1,0)) -> 4 | AP80: 5 | AS80: =SUM(IF(IFERROR(MID(F12:F21,SEARCH(4,F12:F21),1),0)="4",1,0),IF(IFERROR(MID(F21:F26,SEARCH(4,F21:F26),1),0)="4",1,0),IF(IFERROR(MID(F29:F33,SEARCH(4,F29:F33),1),0)="4",1,0),IF(IFERROR(MID(F36:I44,SEARCH(4,F36:F44),1),0)="4",1,0),IF(IFERROR(MID(F47:I53,SEARCH(4,F47:I53),1),0)="4",1,0),IF(IFERROR(MID(F55:F60,SEARCH(4,F55:F60),1),0)="4",1,0),IF(IFERROR(MID(#REF!,SEARCH(4,#REF!),1),0)="4",1,0),IF(IFERROR(MID(F62:F67,SEARCH(4,F62:F67),1),0)="4",1,0)) -> 5 | AW80: 1 | AZ80: =SUM(IF(IFERROR(MID(F12:F21,SEARCH(5,F12:F21),1),0)="5",1,0),IF(IFERROR(MID(F21:F26,SEARCH(5,F21:F26),1),0)="5",1,0),IF(IFERROR(MID(F29:F33,SEARCH(5,F29:F33),1),0)="5",1,0),IF(IFERROR(MID(F36:F44,SEARCH(5,F36:F44),1),0)="5",1,0),IF(IFERROR(MID(F47:F53,SEARCH(5,F47:F53),1),0)="5",1,0),IF(IFERROR(MID(F55:F60,SEARCH(5,F55:F60),1),0)="5",1,0),IF(IFERROR(MID(#REF!,SEARCH(5,#REF!),1),0)="5",1,0),IF(IFERROR(MID(F62:F67,SEARCH(5,F62:I67),1),0)="5",1,0)) -> 3 | BD80: 3 | BG80: =SUM(IF(IFERROR(MID(F12:F21,SEARCH(6,F12:F21),1),0)="6",1,0),IF(IFERROR(MID(F21:F26,SEARCH(6,F21:F26),1),0)="6",1,0),IF(IFERROR(MID(F29:F33,SEARCH(6,F29:F33),1),0)="6",1,0),IF(IFERROR(MID(F36:F44,SEARCH(6,F36:F44),1),0)="6",1,0),IF(IFERROR(MID(F47:I53,SEARCH(6,F47:F53),1),0)="6",1,0),IF(IFERROR(MID(F55:F60,SEARCH(6,F55:F60),1),0)="6",1,0),IF(IFERROR(MID(#REF!,SEARCH(6,#REF!),1),0)="6",1,0),IF(IFERROR(MID(F62:I67,SEARCH(6,F62:I67),1),0)="6",1,0)) -> 5 | BK80: 2 | BN80: =SUM(IF(IFERROR(MID(F12:F21,SEARCH(7,F12:F21),1),0)="7",1,0),IF(IFERROR(MID(F21:F26,SEARCH(7,F21:F26),1),0)="7",1,0),IF(IFERROR(MID(F29:F33,SEARCH(7,F29:F33),1),0)="7",1,0),IF(IFERROR(MID(F36:F44,SEARCH(7,F36:F44),1),0)="7",1,0),IF(IFERROR(MID(F47:F53,SEARCH(7,F47:I53),1),0)="7",1,0),IF(IFERROR(MID(F55:F60,SEARCH(7,F55:I60),1),0)="7",1,0),IF(IFERROR(MID(#REF!,SEARCH(7,#REF!),1),0)="7",1,0),IF(IFERROR(MID(F62:I67,SEARCH(7,F62:I67),1),0)="7",1,0)) -> 3 | BR80: 6 | BU80: =SUM(IF(IFERROR(MID(F12:F21,SEARCH(8,F12:F21),1),0)="8",1,0),IF(IFERROR(MID(F21:F26,SEARCH(8,F21:F26),1),0)="8",1,0),IF(IFERROR(MID(F29:F33,SEARCH(8,F29:F33),1),0)="8",1,0),IF(IFERROR(MID(F36:F44,SEARCH(8,F36:F44),1),0)="8",1,0),IF(IFERROR(MID(F47:F53,SEARCH(8,F47:I53),1),0)="8",1,0),IF(IFERROR(MID(F55:F60,SEARCH(8,F55:F60),1),0)="8",1,0),IF(IFERROR(MID(#REF!,SEARCH(8,#REF!),1),0)="8",1,0),IF(IFERROR(MID(F62:I67,SEARCH(8,F62:F67),1),0)="8",1,0)) -> 7
B81: Контрольных работ (итоговые письм. классные)
B82: Контрольных работ (домашние)

Sheet Кабинеты
B1: № | C1: Наименование
B2: 1 | C2: Кабинеты: русского языка и литературы;
B3: 2 | C3: математики и информатики;
B4: 3 | C4: иностранного языка;
B5: 4 | C5: истории, географии и обществознания;
B6: 5 | C6: гуманитарных и социально-экономических дисциплин;
B7: 6 | C7: мировой художественной культуры;
B8: 7 | C8: музыкально-теоретических дисциплин;
B9: 8 | C9: музыкальной литературы.
B10: 9 | C10: Учебные классы: для групповых и индивидуальных занятий;
B11: 10 | C11: для занятий по междисциплинарному курсу "Сольное камерное и оперное исполнительство" со специализированным оборудованием;
B12: 11 | C12: для занятий по междисциплинарному курсу "Ансамблевое камерное и оперное исполнительство со специализированным оборудованием".
B13: 12 | C13: Залы: концертный зал от 100 посадочных мест с концертными роялями, пультами и звукотехническим оборудованием; малый концертный зал от 30 посадочных мест с концертным роялем
B14: 13 | C14: библиотека, читальный зал с выходом в Интернет.
B15: 14 | C15: помещения для работы со специализированными материалами (фонотека, видеотека)
B16: 15 | C16: Спортивный комплекс: спортивныйзал; место для стрельбы.

Sheet Start (hidden)
